fUSD/lending_fUSD_20250607
["ID","MTS","AMOUNT","RATE_DAILY","PERIOD"]
[364890005,1749285044839,-150.0,0.00028118,2]
[364890006,1749285044849,-183.21817152,0.00028137,30]
[364890007,1749285044859,-436.69578432,0.00028137,30]
[364890008,1749285044869,-2985.2313671,0.00028176,18]
[364890009,1749285044878,-151.0,0.00028219,7]
[364890010,1749285044888,-151.0,0.00028219,7]
[364890011,1749285044898,-326.016835,0.00028219,7]
[364890012,1749285044907,-326.016835,0.00028219,7]
[364890013,1749285044917,-151.0,0.00028219,7]
[364890014,1749285044927,-152.024157,0.00028219,7]
[364890015,1749285044936,-166.818443,0.00028219,7]
[364890016,1749285044946,-166.818443,0.00028219,7]
[364890017,1749285044955,-294.99283,0.00028219,7]
[364890018,1749285044964,-294.99283,0.00028219,7]
[364890019,1749285044974,-151.0,0.00028219,7]
[364890020,1749285044983,-151.0,0.00028219,7]
[364890021,1749285044992,-175.176777,0.00028219,5]
[364890022,1749285045002,-2277.298098,0.00028219,5]
[364890023,1749285045013,-1936.191415,0.00028219,5]
[364890024,1749285045022,-175.176777,0.00028219,5]
[364890025,1749285045032,-297.875602,0.00028219,5]
[364890026,1749285045043,-350.353553,0.00028219,5]
[364890027,1749285045053,-297.875602,0.00028219,5]
[364890028,1749285045062,-287.89647761,0.00028219,2]
[364890029,1749285045072,-525.530331,0.00028219,5]
[364890030,1749285045081,-150.0,0.00028219,5]
[364890031,1749285045091,-446.813404,0.00028219,5]
[364890032,1749285045101,-525.53033,0.00028219,5]
[364890033,1749285045110,-297.875602,0.00028219,5]
[364890034,1749285045119,-175.176777,0.00028219,5]
[364890035,1749285045128,-150.0,0.00028219,5]
[364890036,1749285045138,-150.0,0.00028219,5]
[364890037,1749285045147,-150.0,0.00028246,5]
[364890038,1749285045158,-150.0,0.00028246,5]
[364890039,1749285045168,-150.0,0.00028246,5]
[364890040,1749285045178,-153.29332646,0.00028247,30]
[364890041,1749285045188,-183.21817152,0.00028247,30]
[364890042,1749285045198,-436.69578432,0.00028247,30]
[364890043,1749285045208,-200.0,0.00028274,5]
[364890044,1749285045218,-200.0,0.00028274,5]
[364890045,1749285045227,-200.0,0.00028274,5]
[364890046,1749285045236,-12936.2,0.000283,2]
[364890047,1749285045245,-867.33798439,0.000283,2]
[364890048,1749285045255,-4541.7,0.000283,2]
[364890049,1749285045265,-159.871616,0.00028348,5]
[364890050,1749285045274,-153.29332646,0.00028356,30]
[364890051,1749285045283,-183.21817152,0.00028356,30]
[364890052,1749285045294,-436.69578432,0.00028356,30]
[364890053,1749285045304,-2000.0,0.00028382,2]
[364890054,1749285045313,-151.0,0.00028383,7]
[364890056,1749285045323,-151.0,0.00028383,7]
[364890058,1749285045333,-151.0,0.00028383,7]
[364890059,1749285045342,-151.0,0.00028383,7]
[364890060,1749285045351,-151.0,0.00028383,7]
[364890061,1749285045360,-151.0,0.00028383,2]
[364890062,1749285045369,-151.0,0.00028383,2]
[364890063,1749285045378,-151.0,0.00028383,2]
[364890064,1749285045390,-151.0,0.00028383,2]
[364890065,1749285045399,-151.0,0.00028383,2]
[364890066,1749285045409,-151.0,0.00028383,2]
[364890067,1749285045418,-151.0,0.00028383,2]
[364890068,1749285045427,-151.0,0.00028383,2]
[364890069,1749285045437,-151.0,0.00028383,2]
[364890070,1749285045446,-151.0,0.00028383,2]
[364890071,1749285045455,-151.0,0.00028383,2]
[364890072,1749285045464,-151.0,0.00028383,2]
[364890073,1749285045473,-151.0,0.00028383,2]
[364890074,1749285045482,-151.0,0.00028383,2]
[364890075,1749285045492,-151.0,0.00028383,2]
[364890076,1749285045501,-151.0,0.00028383,2]
[364890077,1749285045511,-151.508267,0.00028383,7]
[364890078,1749285045520,-151.0,0.00028383,2]
[364890079,1749285045529,-151.0,0.00028383,2]
[364890080,1749285045539,-151.0,0.00028383,2]
[364890081,1749285045548,-151.0,0.00028383,2]
[364890082,1749285045557,-151.0,0.00028383,2]
[364890083,1749285045566,-151.0,0.00028383,2]
[364890084,1749285045575,-151.0,0.00028383,2]
[364890085,1749285045584,-151.0,0.00028383,2]
[364890086,1749285045593,-151.0,0.00028383,2]
[364890087,1749285045602,-151.0,0.00028383,2]
[364890088,1749285045611,-151.0,0.00028383,2]
[364890089,1749285045620,-151.0,0.00028383,2]
[364890090,1749285045629,-151.0,0.00028383,2]
[364890091,1749285045639,-151.0,0.00028383,2]
[364890092,1749285045648,-151.0,0.00028383,2]
[364890093,1749285045657,-151.0,0.00028383,2]
[364890094,1749285045669,-151.0,0.00028383,2]
[364890095,1749285045678,-151.0,0.00028383,2]
[364890096,1749285045690,-151.0,0.00028383,2]
[364890097,1749285045701,-151.0,0.00028383,2]
[364890098,1749285045710,-151.0,0.00028383,2]
[364890099,1749285045720,-151.0,0.00028383,2]
[364890100,1749285045730,-151.0,0.00028383,2]
[364890101,1749285045740,-151.0,0.00028383,2]
[364890102,1749285045750,-151.0,0.00028383,2]
[364890103,1749285045760,-151.0,0.00028383,2]
[364890104,1749285045770,-151.0,0.00028383,2]
[364890105,1749285045780,-151.0,0.00028383,2]
[364890106,1749285045790,-170.671578,0.00028383,2]
[364890107,1749285045799,-151.0,0.00028383,7]
[364890108,1749285045808,-182.368168,0.00028383,7]
[364890109,1749285045818,-182.368168,0.00028383,7]
[364890110,1749285045827,-283.26948,0.00028383,7]
[364890111,1749285045837,-283.26948,0.00028383,7]
[364890112,1749285045846,-175.176777,0.00028383,5]
[364890113,1749285045855,-162.477603,0.00028383,5]
[364890114,1749285045865,-2277.298098,0.00028383,5]
[364890115,1749285045875,-1936.191415,0.00028383,5]
[364890116,1749285045885,-175.176777,0.00028383,5]
[364890117,1749285045895,-297.875602,0.00028383,5]
[364890118,1749285045903,-350.353553,0.00028383,5]
[364890119,1749285045913,-162.477602,0.00028383,5]
[364890120,1749285045923,-297.875602,0.00028383,5]
[364890121,1749285045932,-525.530331,0.00028383,5]
[364890122,1749285045942,-446.813404,0.00028383,5]
[364890123,1749285045952,-525.53033,0.00028383,5]
[364890125,1749285045962,-297.875602,0.00028383,5]
[364890127,1749285045972,-175.176777,0.00028383,5]
[364890129,1749285045982,-295.37822589,0.00028391,2]
[364890131,1749285045991,-12936.2,0.000284,2]
[364890133,1749285046001,-4541.7,0.000284,2]
[364890135,1749285046010,-211.0,0.0002843,2]
[364890137,1749285046020,-212.0,0.0002843,30]
[364890138,1749285046029,-206.0,0.0002843,2]
[364890139,1749285046038,-5000.0,0.00028447,2]
[364890140,1749285046047,-153.29332646,0.00028466,30]
[364890141,1749285046057,-183.21817152,0.00028466,30]
[364890142,1749285046066,-436.69578432,0.00028466,30]
[364890143,1749285046074,-154.45815481,0.000285,7]
[364890144,1749285046084,-318.993026,0.00028537,7]
[364890145,1749285046094,-318.993026,0.00028537,7]
[364890146,1749285046104,-1321.048037,0.00028537,7]
[364890147,1749285046116,-1321.048037,0.00028537,7]
[364890148,1749285046125,-2000.0,0.00028546,2]
[364890149,1749285046134,-2000.0,0.00028546,2]
[364890150,1749285046144,-151.0,0.00028546,7]
[364890151,1749285046154,-151.0,0.00028546,7]
[364890152,1749285046163,-151.0,0.00028546,7]
[364890153,1749285046172,-426.267147,0.00028546,7]
[364890154,1749285046181,-426.267147,0.00028546,7]
[364890155,1749285046190,-151.0,0.00028546,7]
[364890156,1749285046200,-151.0,0.00028546,7]
[364890157,1749285046209,-151.0,0.00028546,7]
[364890158,1749285046218,-151.0,0.00028547,7]
[364890159,1749285046227,-151.0,0.00028547,7]
[364890160,1749285046236,-151.0,0.00028547,7]
[364890161,1749285046245,-273.709969,0.00028547,7]
[364890162,1749285046256,-151.0,0.00028547,7]
[364890163,1749285046266,-151.0,0.00028547,7]
[364890164,1749285046275,-151.0,0.00028547,7]
[364890165,1749285046284,-151.0,0.00028547,7]
[364890166,1749285046293,-182.368168,0.00028547,7]
[364890167,1749285046303,-182.368168,0.00028547,7]
[364890168,1749285046313,-283.26948,0.00028547,7]
[364890169,1749285046324,-326.016835,0.00028547,7]
[364890170,1749285046333,-283.26948,0.00028547,7]
[364890171,1749285046342,-326.016835,0.00028547,7]
[364890172,1749285046353,-221.624927,0.00028547,7]
[364890173,1749285046362,-166.818443,0.00028547,7]
[364890174,1749285046372,-166.818443,0.00028547,7]
[364890175,1749285046381,-294.99283,0.00028547,7]
[364890176,1749285046392,-294.99283,0.00028547,7]
[364890177,1749285046403,-151.0,0.00028547,7]
[364890178,1749285046413,-151.0,0.00028547,7]
[364890179,1749285046423,-175.176777,0.00028547,5]
[364890180,1749285046433,-162.477603,0.00028547,5]
[364890181,1749285046442,-2277.298098,0.00028547,5]
[364890182,1749285046453,-1936.191415,0.00028547,5]
[364890183,1749285046464,-175.176777,0.00028547,5]
[364890184,1749285046474,-297.875602,0.00028547,5]
[364890185,1749285046485,-350.353553,0.00028547,5]
[364890186,1749285046494,-162.477602,0.00028547,5]
[364890187,1749285046505,-151.0,0.00028547,7]
[364890188,1749285046515,-182.136622,0.00028547,7]
[364890189,1749285046526,-182.136622,0.00028547,7]
[364890190,1749285046537,-297.875602,0.00028547,5]
[364890191,1749285046547,-525.530331,0.00028547,5]
[364890192,1749285046557,-151.0,0.00028547,7]
[364890193,1749285046568,-151.0,0.00028547,7]
[364890194,1749285046578,-446.813404,0.00028547,5]
[364890195,1749285046589,-225.218056,0.00028547,7]
[364890196,1749285046601,-151.0,0.00028547,7]
[364890197,1749285046612,-225.218056,0.00028547,7]
[364890198,1749285046623,-525.53033,0.00028547,5]
[364890199,1749285046633,-151.0,0.00028547,7]
[364890200,1749285046643,-10000.0,0.00028547,7]
[364890201,1749285046652,-10000.0,0.00028547,7]
[364890202,1749285046662,-10000.0,0.00028547,7]
[364890203,1749285046672,-151.0,0.00028547,7]
[364890204,1749285046683,-297.875602,0.00028547,5]
[364890205,1749285046698,-175.176777,0.00028547,5]
[364890206,1749285046708,-961.409907,0.00028547,7]
[364890207,1749285046720,-961.409907,0.00028547,7]
[364890208,1749285046730,-171.882811,0.00028547,7]
[364890209,1749285046740,-171.882811,0.00028547,7]
[364890210,1749285046750,-1000.0,0.00028547,2]
[364890211,1749285046760,-183.21817152,0.00028575,30]
[364890212,1749285046770,-436.69578432,0.00028575,30]
[364890213,1749285046780,-151.0,0.0002859,7]
[364890214,1749285046790,-183.92822,0.0002859,7]
[364890215,1749285046801,-183.92822,0.0002859,7]
[364890216,1749285046812,-242.735493,0.0002859,7]
[364890217,1749285046822,-242.735493,0.0002859,7]
[364890218,1749285046833,-12936.2,0.000286,2]
[364890219,1749285046843,-4541.7,0.000286,2]
[364890220,1749285046854,-156.7,0.00028629,2]
[364890221,1749285046864,-151.0,0.00028647,7]
[364890222,1749285046874,-151.0,0.00028647,7]
[364890223,1749285046883,-326.016835,0.00028647,7]
[364890224,1749285046893,-326.016835,0.00028647,7]
[364890225,1749285046903,-166.818443,0.00028647,7]
[364890226,1749285046913,-166.818443,0.00028647,7]
[364890227,1749285046924,-294.99283,0.00028647,7]
[364890228,1749285046944,-294.99283,0.00028647,7]
[364890229,1749285046955,-151.0,0.00028647,7]
[364890230,1749285046964,-161.779004,0.00028647,7]
[364890231,1749285046974,-400.0,0.00028678,13]
[364890232,1749285046984,-400.0,0.00028678,13]
[364890233,1749285046994,-400.0,0.00028678,13]
[364890234,1749285047004,-400.0,0.00028678,13]
[364890235,1749285047014,-400.0,0.00028678,13]
[364890236,1749285047024,-400.0,0.00028678,13]
[364890237,1749285047034,-400.0,0.00028678,13]
[364890238,1749285047043,-400.0,0.00028678,13]
[364890239,1749285047052,-400.0,0.00028678,13]
[364890240,1749285047062,-400.0,0.00028678,13]
[364890241,1749285047072,-400.0,0.00028678,13]
[364890242,1749285047081,-400.0,0.00028678,13]
[364890243,1749285047091,-400.0,0.00028678,13]
[364890244,1749285047100,-400.0,0.00028678,13]
[364890245,1749285047110,-400.0,0.00028678,13]
[364890246,1749285047120,-400.0,0.00028678,13]
[364890247,1749285047129,-400.0,0.00028678,13]
[364890248,1749285047139,-400.0,0.00028678,13]
[364890249,1749285047149,-400.0,0.00028678,13]
[364890250,1749285047159,-400.0,0.00028678,13]
[364890251,1749285047169,-400.0,0.00028678,13]
[364890252,1749285047179,-400.0,0.00028678,13]
[364890253,1749285047189,-210.0,0.00028678,13]
[364890254,1749285047199,-200.0,0.00028678,2]
[364890255,1749285047209,-200.0,0.00028678,2]
[364890256,1749285047219,-200.0,0.00028678,2]
[364890257,1749285047229,-200.0,0.00028678,2]
[364890258,1749285047239,-200.0,0.00028678,2]
[364890259,1749285047249,-200.0,0.00028678,2]
[364890260,1749285047258,-200.0,0.00028678,2]
[364890261,1749285047268,-200.0,0.00028678,2]
[364890262,1749285047278,-200.0,0.00028678,2]
[364890263,1749285047288,-200.0,0.00028678,2]
[364890264,1749285047297,-200.0,0.00028678,2]
[364890265,1749285047307,-200.0,0.00028678,2]
[364890266,1749285047317,-200.0,0.00028678,2]
[364890267,1749285047327,-200.0,0.00028678,2]
[364890268,1749285047336,-231.0,0.00028678,2]
[364890269,1749285047346,-183.21817152,0.00028685,30]
[364890270,1749285047356,-436.69578432,0.00028685,30]
[364890271,1749285047366,-14600.21,0.000287,2]
[364890272,1749285047376,-151.0,0.00028712,7]
[364890273,1749285047387,-151.0,0.00028712,7]
[364890274,1749285047397,-151.0,0.00028712,7]
[364890275,1749285047407,-151.0,0.00028712,7]
[364890276,1749285047417,-151.0,0.00028712,7]
[364890277,1749285047428,-182.368168,0.00028712,7]
[364890278,1749285047438,-182.368168,0.00028712,7]
[364890279,1749285047449,-283.26948,0.00028712,7]
[364890280,1749285047460,-283.26948,0.00028712,7]
[364890281,1749285047470,-175.176777,0.00028712,5]
[364890282,1749285047479,-175.176777,0.00028712,5]
[364890283,1749285047490,-162.477603,0.00028712,5]
[364890284,1749285047500,-162.477603,0.00028712,5]
[364890285,1749285047510,-2277.298098,0.00028712,5]
[364890286,1749285047520,-2277.298098,0.00028712,5]
[364890287,1749285047530,-1936.191415,0.00028712,5]
[364890288,1749285047540,-1936.191415,0.00028712,5]
[364890289,1749285047550,-175.176777,0.00028712,5]
[364890290,1749285047560,-175.176777,0.00028712,5]
[364890291,1749285047570,-297.875602,0.00028712,5]
[364890292,1749285047580,-297.875602,0.00028712,5]
[364890293,1749285047590,-350.353553,0.00028712,5]
[364890294,1749285047599,-350.353553,0.00028712,5]
[364890295,1749285047609,-162.477602,0.00028712,5]
[364890296,1749285047619,-162.477602,0.00028712,5]
[364890297,1749285047628,-151.0,0.00028712,7]
[364890298,1749285047638,-297.875602,0.00028712,5]
[364890299,1749285047648,-297.875602,0.00028712,5]
[364890300,1749285047658,-525.530331,0.00028712,5]
[364890301,1749285047668,-525.530331,0.00028712,5]
[364890302,1749285047680,-240.77297,0.00028712,7]
[364890303,1749285047694,-240.77297,0.00028712,7]
[364890304,1749285047711,-446.813404,0.00028712,5]
[364890305,1749285047723,-446.813404,0.00028712,5]
[364890306,1749285047735,-525.53033,0.00028712,5]
[364890307,1749285047746,-525.53033,0.00028712,5]
[364890308,1749285047757,-297.875602,0.00028712,5]
[364890309,1749285047769,-297.875602,0.00028712,5]
[364890310,1749285047780,-175.176777,0.00028712,5]
[364890311,1749285047791,-175.176777,0.00028712,5]
[364890312,1749285047802,-152.0,0.00028719,4]
[364890313,1749285047813,-304.74,0.00028726,2]
[364890314,1749285047823,-2985.2313671,0.00028728,19]
[364890315,1749285047835,-404.0,0.00028743,5]
[364890316,1749285047846,-420.84217298,0.0002875,4]
[364890317,1749285047856,-318.993026,0.00028757,7]
[364890318,1749285047867,-318.993026,0.00028757,7]
[364890319,1749285047878,-1321.048037,0.00028757,7]
[364890320,1749285047889,-1321.048037,0.00028757,7]
[364890321,1749285047899,-151.0,0.00028763,7]
[364890322,1749285047910,-182.136622,0.00028763,7]
[364890323,1749285047921,-182.136622,0.00028763,7]
[364890324,1749285047931,-151.0,0.00028763,7]
[364890325,1749285047942,-151.0,0.00028763,7]
[364890326,1749285047953,-151.0,0.00028763,7]
[364890327,1749285047964,-225.218056,0.00028763,7]
[364890328,1749285047976,-151.0,0.00028763,7]
[364890329,1749285047987,-225.218056,0.00028763,7]
[364890330,1749285047997,-151.0,0.00028763,7]
[364890331,1749285048008,-10000.0,0.00028763,7]
[364890332,1749285048018,-10000.0,0.00028763,7]
[364890333,1749285048029,-151.0,0.00028763,7]
[364890334,1749285048040,-10000.0,0.00028763,7]
[364890335,1749285048051,-180.469387,0.00028763,7]
[364890336,1749285048062,-151.0,0.00028763,7]
[364890337,1749285048073,-961.409907,0.00028763,7]
[364890338,1749285048084,-961.409907,0.00028763,7]
[364890339,1749285048096,-171.882811,0.00028763,7]
[364890340,1749285048107,-171.882811,0.00028763,7]
[364890341,1749285048117,-426.267147,0.00028763,7]
[364890342,1749285048127,-426.267147,0.00028763,7]
[364890343,1749285048143,-151.0,0.00028763,7]
[364890344,1749285048155,-204.107327,0.00028763,7]
[364890345,1749285048166,-151.0,0.00028763,7]
[364890346,1749285048177,-3934.08,0.00028767,2]
[364890347,1749285048188,-320.98768156,0.00028773,2]
[364890348,1749285048199,-183.21817152,0.00028795,30]
[364890349,1749285048209,-436.69578432,0.00028795,30]
[364890350,1749285048220,-1400.0,0.000288,2]
[364890351,1749285048231,-150.35,0.00028822,2]
[364890352,1749285048242,-150.0,0.00028839,2]
[364890353,1749285048253,-700.0,0.0002887,2]
[364890354,1749285048264,-150.0,0.00028871,2]
[364890355,1749285048274,-150.0,0.00028871,2]
[364890356,1749285048285,-150.0,0.00028871,2]
[364890357,1749285048296,-572.79025593,0.00028871,2]
[364890358,1749285048306,-4893.22236091,0.00028871,2]
[364890359,1749285048316,-47663.64663568,0.00028871,2]
[364890360,1749285048326,-151.0,0.00028871,7]
[364890361,1749285048337,-183.92822,0.00028871,7]
[364890362,1749285048350,-183.92822,0.00028871,7]
[364890363,1749285048360,-242.735493,0.00028871,7]
[364890364,1749285048371,-242.735493,0.00028871,7]
[364890365,1749285048382,-151.0,0.00028876,7]
[364890366,1749285048393,-151.0,0.00028876,7]
[364890367,1749285048404,-326.016835,0.00028876,7]
[364890368,1749285048414,-326.016835,0.00028876,7]
[364890369,1749285048425,-166.818443,0.00028876,7]
[364890370,1749285048436,-166.818443,0.00028876,7]
[364890371,1749285048446,-294.99283,0.00028876,7]
[364890372,1749285048457,-294.99283,0.00028876,7]
[364890373,1749285048467,-151.0,0.00028876,7]
[364890374,1749285048479,-175.176777,0.00028876,5]
[364890375,1749285048490,-162.477603,0.00028876,5]
[364890376,1749285048501,-2277.298098,0.00028876,5]
[364890377,1749285048517,-1936.191415,0.00028876,5]
[364890378,1749285048528,-175.176777,0.00028876,5]
[364890379,1749285048539,-297.875602,0.00028876,5]
[364890380,1749285048549,-350.353553,0.00028876,5]
[364890381,1749285048560,-162.477602,0.00028876,5]
[364890382,1749285048571,-297.875602,0.00028876,5]
[364890383,1749285048586,-525.530331,0.00028876,5]
[364890384,1749285048597,-446.813404,0.00028876,5]
[364890385,1749285048607,-525.53033,0.00028876,5]
[364890386,1749285048618,-297.875602,0.00028876,5]
[364890387,1749285048629,-175.176777,0.00028876,5]
[364890388,1749285048640,-905.47,0.00028898,2]
[364890389,1749285048955,-768.0,0.000289,2]
[364890390,1749285048971,-237.0,0.000289,2]
[364890391,1749285048982,-376.0,0.000289,2]
[364890392,1749285048992,-211.0,0.0002891,2]
[364890393,1749285049002,-212.0,0.0002891,30]
[364890394,1749285049013,-206.0,0.0002891,2]
[364890395,1749285049023,-280.032274,0.00028967,6]
[364890396,1749285049033,-5005.48695,0.00028968,30]
[364890397,1749285049043,-700.0,0.0002897,2]
[364890398,1749285049053,-700.0,0.0002897,2]
[364890399,1749285049063,-500.0,0.0002897,2]
[364890400,1749285049073,-200.0,0.00029,2]
[364890401,1749285049083,-9151.43418287,0.00029,2]
[364890402,1749285049093,-31976.49154714,0.00029,3]
[364890403,1749285049104,-70379.81957703,0.00029,2]
[364890404,1749285049114,-197.335924,0.00029,7]
[364890405,1749285049125,-151.64,0.00029,2]
[364890406,1749285049135,-151.64,0.00029,2]
[364890407,1749285049145,-189985.08058363,0.00029,2]
[364890408,1749285049156,-50591.55773478,0.00029,2]
[364890409,1749285049166,-183.92822,0.00029,7]
[364890410,1749285049176,-183.92822,0.00029,7]
[364890411,1749285049189,-303.28795208,0.00029,5]
[364890412,1749285049199,-42915.24276586,0.00029,2]
[364890413,1749285049209,-318.993026,0.00029,7]
[364890414,1749285049219,-318.993026,0.00029,7]
[364890415,1749285049229,-1321.048037,0.00029,7]
[364890416,1749285049239,-242.735493,0.00029,7]
[364890417,1749285049249,-1321.048037,0.00029,7]
[364890418,1749285049259,-242.735493,0.00029,7]
[364890419,1749285049269,-162.380719,0.00029,2]
[364890420,1749285049279,-223.0315306,0.00029,2]
[364890421,1749285049289,-1000.0,0.00029001,2]
[364890422,1749285049300,-151.0,0.00029041,7]
[364890423,1749285049309,-151.0,0.00029041,7]
[364890424,1749285049319,-151.0,0.00029041,7]
[364890425,1749285049329,-151.0,0.00029041,7]
[364890426,1749285049339,-151.0,0.00029041,7]
[364890427,1749285049348,-151.0,0.00029041,7]
[364890428,1749285049359,-182.368168,0.00029041,7]
[364890429,1749285049369,-182.368168,0.00029041,7]
[364890430,1749285049381,-283.26948,0.00029041,7]
[364890431,1749285049392,-283.26948,0.00029041,7]
[364890432,1749285049403,-151.0,0.00029044,7]
[364890433,1749285049413,-151.0,0.00029044,7]
[364890434,1749285049423,-182.136622,0.00029044,7]
[364890435,1749285049434,-182.136622,0.00029044,7]
[364890436,1749285049445,-151.0,0.00029044,7]
[364890437,1749285049454,-151.0,0.00029044,7]
[364890438,1749285049465,-151.0,0.00029044,7]
[364890439,1749285049475,-240.77297,0.00029044,7]
[364890440,1749285049486,-240.77297,0.00029044,7]
[364890441,1749285049496,-225.218056,0.00029044,7]
[364890442,1749285049505,-151.0,0.00029044,7]
[364890443,1749285049515,-225.218056,0.00029044,7]
[364890444,1749285049525,-10000.0,0.00029044,7]
[364890445,1749285049536,-10000.0,0.00029044,7]
[364890446,1749285049546,-151.0,0.00029044,7]
[364890447,1749285049556,-10000.0,0.00029044,7]
[364890448,1749285049566,-151.0,0.00029044,7]
[364890449,1749285049577,-183.92822,0.00029044,7]
[364890450,1749285049587,-183.92822,0.00029044,7]
[364890451,1749285049597,-961.409907,0.00029044,7]
[364890452,1749285049608,-961.409907,0.00029044,7]
[364890453,1749285049618,-171.882811,0.00029044,7]
[364890454,1749285049628,-171.882811,0.00029044,7]
[364890455,1749285049638,-426.267147,0.00029044,7]
[364890456,1749285049647,-426.267147,0.00029044,7]
[364890457,1749285049657,-151.0,0.00029044,7]
[364890458,1749285049667,-151.0,0.00029044,7]
[364890459,1749285049677,-318.993026,0.00029044,7]
[364890460,1749285049690,-318.993026,0.00029044,7]
[364890461,1749285049707,-1321.048037,0.00029044,7]
[364890462,1749285049717,-242.735493,0.00029044,7]
[364890463,1749285049727,-1321.048037,0.00029044,7]
[364890464,1749285049737,-187143.1102,0.00029044,2]
[364890465,1749285049747,-297.50576724,0.00029105,2]
[364890466,1749285049756,-151.0,0.00029205,7]
[364890467,1749285049766,-151.0,0.00029205,7]
[364890468,1749285049776,-326.016835,0.00029205,7]
[364890469,1749285049786,-326.016835,0.00029205,7]
[364890470,1749285049796,-166.818443,0.00029205,7]
[364890471,1749285049805,-166.818443,0.00029205,7]
[364890472,1749285049816,-294.99283,0.00029205,7]
[364890473,1749285049825,-294.99283,0.00029205,7]
[364890474,1749285049835,-151.0,0.00029205,7]
[364890475,1749285049844,-2985.2313671,0.00029279,20]
[364890476,1749285049854,-921.98,0.0002929,2]
[364890477,1749285049863,-921.98,0.0002929,2]
[364890478,1749285049873,-200.0,0.000293,14]
[364890479,1749285049882,-200.0,0.000293,14]
[364890480,1749285049892,-200.0,0.000293,14]
[364890481,1749285049901,-200.0,0.000293,14]
[364890482,1749285049911,-200.0,0.000293,14]
[364890483,1749285049921,-200.0,0.000293,14]
[364890484,1749285049931,-200.0,0.000293,14]
[364890485,1749285049940,-200.0,0.000293,14]
[364890486,1749285049950,-200.0,0.000293,14]
[364890487,1749285049960,-200.0,0.000293,14]
[364890488,1749285049970,-200.0,0.000293,14]
[364890489,1749285049979,-200.0,0.000293,14]
[364890490,1749285049988,-200.0,0.000293,14]
[364890491,1749285049999,-200.0,0.000293,14]
[364890492,1749285050010,-200.0,0.000293,14]
[364890493,1749285050020,-200.0,0.000293,14]
[364890494,1749285050029,-200.0,0.000293,14]
[364890495,1749285050039,-200.0,0.000293,14]
[364890496,1749285050048,-200.0,0.000293,14]
[364890497,1749285050058,-200.0,0.000293,14]
[364890498,1749285050068,-200.0,0.000293,14]
[364890499,1749285050078,-200.0,0.000293,14]
[364890500,1749285050087,-200.0,0.000293,14]
[364890501,1749285050095,-200.0,0.000293,14]
[364890502,1749285050105,-200.0,0.000293,14]
[364890503,1749285050114,-200.0,0.000293,14]
[364890504,1749285050123,-200.0,0.000293,14]
[364890505,1749285050133,-200.0,0.000293,14]
[364890506,1749285050142,-295.0,0.000293,14]
[364890507,1749285050151,-200.0,0.000293,14]
[364890508,1749285050160,-200.0,0.000293,14]
[364890509,1749285050169,-209.4,0.000293,2]
[364890510,1749285050178,-210.73,0.000293,2]
[364890511,1749285050187,-200.0,0.000293,2]
[364890512,1749285050196,-1000.0,0.000293,2]
[364890513,1749285050206,-1392.06,0.00029354,22]